bitfinex-derivatives/quotes_BTCF0:USTF0_20250429
["timestamp","ask_amount","ask_price","bid_price","bid_amount"]
[1745939208657,0.0739,95009.0,95006.0,0.2766603]
[1745939209043,0.0739,95009.0,95008.0,0.2104559]
[1745939209245,0.0739,95009.0,95008.0,0.5712559]
[1745939209441,0.0739,95009.0,95008.0,0.60830683]
[1745939209849,0.0739,95009.0,95008.0,0.64710683]
[1745939210261,0.0809,95009.0,95008.0,2.14810683]
[1745939210449,0.0809,95009.0,95008.0,2.14910683]
[1745939210450,0.0889,95009.0,95008.0,2.14910683]
[1745939210950,0.015,95009.0,95008.0,2.14910683]
[1745939211151,0.015,95009.0,95008.0,2.26910683]
[1745939211347,0.0525,95009.0,95008.0,2.26910683]
[1745939213555,0.0525,95009.0,95008.0,2.30770683]
[1745939213949,0.08034675,95014.0,95008.0,2.09725093]
[1745939214156,0.08034675,95014.0,95013.0,0.2104448]
[1745939214750,0.29078935,95014.0,95013.0,1.7104448]
[1745939215047,0.08034675,95014.0,95013.0,1.7104448]
[1745939215257,0.08034675,95014.0,95013.0,1.7114448]
[1745939215258,0.13304675,95014.0,95013.0,1.7114448]
[1745939215852,0.0457,95014.0,95013.0,1.7114448]
[1745939216062,0.0537,95014.0,95013.0,1.7485448]
[1745939216257,0.0537,95014.0,95013.0,1.7124448]
[1745939216657,0.091,95014.0,95013.0,1.7124448]
[1745939218958,0.001,95016.0,95015.0,0.2104404]
[1745939219257,0.0373,95025.0,95024.0,0.2104205]
[1745939219458,0.0525977,95038.0,95031.0,0.0526012]
[1745939219664,0.2104183,95025.0,95024.0,0.0662]
[1745939220249,0.3304183,95025.0,95024.0,0.0662]
[1745939221857,0.3304183,95025.0,95024.0,0.0672]
[1745939222153,0.3304183,95025.0,95024.0,0.07500058]
[1745939222458,0.3304183,95025.0,95024.0,0.07800058]
[1745939222658,0.3304183,95025.0,95024.0,0.08000058]
[1745939223066,0.4041183,95025.0,95024.0,0.01380058]
[1745939224363,0.4041183,95025.0,95024.0,0.01080058]
[1745939224555,0.4041183,95025.0,95021.0,0.2104261]
[1745939224763,0.2104249,95022.0,95021.0,0.10192859]
[1745939225172,0.3304249,95022.0,95021.0,0.10192859]
[1745939225967,0.3304249,95022.0,95021.0,0.10292859]
[1745939226150,0.2104249,95022.0,95021.0,0.10292859]
[1745939227258,0.3304249,95022.0,95021.0,0.10292859]
[1745939227460,0.3304249,95022.0,95021.0,0.11075588]
[1745939228266,0.2104249,95022.0,95021.0,0.11075588]
[1745939228656,0.2104249,95022.0,95021.0,0.10975588]
[1745939228855,0.2104249,95022.0,95021.0,0.00782729]
[1745939229055,0.2104293,95020.0,95019.0,0.2766315]
[1745939229468,0.2104293,95020.0,95019.0,0.0662]
[1745939229767,0.2856293,95020.0,95019.0,0.0662]
[1745939230167,0.2866293,95020.0,95019.0,0.0662]
[1745939230869,0.2856293,95020.0,95019.0,0.07408571]
[1745939231563,0.2856293,95020.0,95019.0,0.00888571]
[1745939232363,0.4056293,95020.0,95019.0,0.00888571]
[1745939232953,0.4066293,95020.0,95019.0,0.00788571]
[1745939233155,0.2104493,95012.0,95011.0,0.210449]
[1745939233661,0.3208493,95012.0,95011.0,0.210449]
[1745939233963,0.2104493,95011.0,95010.0,0.0359]
[1745939234461,0.2855493,95011.0,95010.0,0.2463515]
[1745939235052,0.2855493,95011.0,95010.0,0.0359]
[1745939235256,0.2855493,95011.0,95010.0,0.2463515]
[1745939235459,0.2855493,95011.0,95010.0,0.04389294]
[1745939235763,0.2471493,95011.0,95010.0,0.29034444]
[1745939236159,0.2471493,95011.0,95010.0,0.41034444]
[1745939236359,0.2845493,95011.0,95010.0,0.41034444]
[1745939236766,0.2845493,95011.0,95010.0,0.41134444]
[1745939237762,0.2845493,95011.0,95010.0,0.41034444]
[1745939237969,0.2845493,95011.0,95010.0,0.41234444]
[1745939238160,0.2845493,95011.0,95010.0,0.29234444]
[1745939239765,0.2845493,95011.0,95010.0,0.29134444]
[1745939239960,0.2845493,95011.0,95010.0,0.08089294]
[1745939240161,0.2845493,95011.0,95010.0,0.07989294]
[1745939240358,0.2845493,95011.0,95010.0,0.04489294]
[1745939240558,0.2845493,95011.0,95010.0,0.00899294]
[1745939240767,0.2845493,95011.0,95010.0,0.04579294]
[1745939240968,0.2845493,95011.0,95010.0,0.04479294]
[1745939241267,0.2845493,95011.0,95010.0,0.04579294]
[1745939241465,0.2845493,95011.0,95010.0,0.25624444]
[1745939241657,0.2845493,95011.0,95010.0,0.04579294]
[1745939244167,0.2845493,95011.0,95010.0,0.04479294]
[1745939245876,0.2845493,95011.0,95010.0,0.25524444]
[1745939246364,0.2845493,95011.0,95010.0,0.29014444]
[1745939247364,0.2471493,95011.0,95010.0,0.29014444]
[1745939247567,0.571245,95013.0,95012.0,0.2104471]
[1745939247863,0.3608,95013.0,95012.0,0.2104471]
[1745939248268,0.3608,95013.0,95012.0,1.8304471]
[1745939249172,0.3618,95013.0,95012.0,1.8304471]
[1745939249672,0.3608,95013.0,95012.0,1.8334471]
[1745939250269,0.3608,95013.0,95012.0,1.8374471]
[1745939251166,0.052609,95017.0,95012.0,1.627]
[1745939251371,0.2104387,95016.0,95015.0,0.2104382]
[1745939251966,0.2104355,95018.0,95017.0,0.2104338]
[1745939252167,0.2104355,95018.0,95017.0,0.3304338]
[1745939253062,0.2104355,95018.0,95017.0,0.3324338]
[1745939254174,0.2104355,95018.0,95017.0,0.3354338]
[1745939255971,0.2104312,95020.0,95019.0,0.2104293]
[1745939256174,0.2104312,95020.0,95019.0,0.3304293]
[1745939256477,0.0526008,95032.0,95021.0,0.0526066]
[1745939256664,0.29074755,95034.0,95033.0,0.2104005]
[1745939256981,0.08034675,95034.0,95033.0,0.2104005]
[1745939257176,0.10712901,95041.0,95040.0,0.2103851]
[1745939257474,0.1054414,95051.0,95050.0,0.2103629]
[1745939257779,0.16069351,95060.0,95059.0,0.210343]
[1745939257967,0.2103408,95060.0,95059.0,0.210343]
[1745939258165,0.2103408,95060.0,95059.0,0.330343]
[1745939258363,0.2459408,95060.0,95059.0,0.330343]
[1745939259074,0.2459408,95060.0,95059.0,0.33834732]
[1745939259275,0.2103408,95060.0,95059.0,0.21834732]
[1745939259866,0.2143408,95060.0,95059.0,0.21834732]
[1745939260181,0.2143408,95060.0,95059.0,0.33834732]
[1745939260575,0.2491408,95060.0,95059.0,0.33834732]
[1745939262379,0.2491408,95060.0,95059.0,0.37474732]
[1745939262973,0.2491408,95060.0,95059.0,0.41094732]
[1745939265066,0.0525779,95074.0,95059.0,0.20060432]
[1745939265270,0.2103231,95068.0,95067.0,0.2103231]
[1745939265478,0.2103231,95068.0,95067.0,0.2764431]
[1745939266476,0.2516231,95068.0,95067.0,0.3112431]
[1745939267785,0.006,95068.0,95067.0,0.3112431]
[1745939268077,0.006,95068.0,95067.0,0.4312431]
[1745939268475,0.006,95068.0,95067.0,1.9312431]
[1745939269076,0.2103178,95071.0,95070.0,0.2103164]
[1745939269279,0.2103178,95071.0,95070.0,0.2466164]
[1745939269686,0.3608,95073.0,95072.0,0.2103142]
[1745939270383,0.3608,95073.0,95072.0,1.8303142]
[1745939271171,0.2113054,95076.0,95075.0,0.2103076]
[1745939271474,0.001,95076.0,95075.0,0.2103076]
[1745939272081,0.2113054,95076.0,95075.0,0.2103076]
[1745939272385,0.2113054,95076.0,95075.0,0.36178293]
[1745939273071,0.2841054,95076.0,95075.0,0.24178293]
[1745939273273,0.2891054,95076.0,95075.0,0.24178293]
[1745939281487,0.2891054,95076.0,95075.0,0.03147533]
[1745939281688,0.210312,95073.0,95072.0,1.5]
[1745939282085,0.210312,95073.0,95072.0,1.7103142]
[1745939282391,0.210312,95073.0,95072.0,1.74180207]
[1745939282582,0.210312,95073.0,95072.0,1.80784207]
[1745939282989,0.214312,95073.0,95072.0,1.80784207]
[1745939283188,0.214312,95073.0,95072.0,1.84414207]
[1745939286795,0.214312,95073.0,95072.0,0.34414207]
[1745939287894,0.214312,95073.0,95072.0,1.84414207]
[1745939288402,0.214312,95073.0,95072.0,1.59752787]
[1745939288597,0.214312,95073.0,95072.0,1.80784207]
[1745939289395,0.214312,95073.0,95072.0,1.5]
[1745939289599,0.214312,95073.0,95072.0,1.7763542]
[1745939290291,0.214312,95073.0,95072.0,1.80918545]
[1745939290495,0.214312,95073.0,95072.0,0.30918545]
[1745939290895,0.214312,95073.0,95072.0,0.2763542]
[1745939291696,0.214312,95073.0,95072.0,0.30899628]
[1745939291895,0.214312,95073.0,95072.0,0.2763542]
[1745939293600,0.214312,95073.0,95072.0,0.30767534]
[1745939293791,0.214312,95073.0,95072.0,0.34477534]
[1745939298794,0.214312,95073.0,95072.0,0.30767534]
[1745939298999,0.214312,95073.0,95072.0,0.06604]
[1745939299194,0.334312,95073.0,95072.0,0.06604]
[1745939300098,0.214312,95073.0,95072.0,0.06604]
[1745939303505,0.214312,95073.0,95072.0,0.10414]
[1745939303691,0.214312,95073.0,95072.0,0.3144542]
[1745939303897,0.004,95073.0,95072.0,0.3144542]
[1745939304093,0.214312,95073.0,95072.0,0.4344542]
[1745939304508,0.004,95073.0,95072.0,0.4344542]
[1745939304698,0.214312,95073.0,95072.0,0.4722542]
[1745939305701,0.214312,95073.0,95072.0,1.9722542]
[1745939306208,0.214312,95073.0,95072.0,1.8522542]
[1745939306411,0.250212,95073.0,95072.0,1.8522542]
[1745939311812,0.214312,95073.0,95072.0,1.8522542]
[1745939312309,0.001,95076.0,95075.0,0.2103076]
[1745939312906,0.4131,95084.0,95079.0,0.2102988]
[1745939313104,0.2102841,95089.0,95088.0,0.2628436]
[1745939313414,0.2102745,95090.0,95089.0,0.2102744]
[1745939313611,0.2102745,95090.0,95089.0,0.3211744]
[1745939315307,0.2102745,95090.0,95089.0,0.3241744]
[1745939315702,0.2102745,95090.0,95089.0,0.3301744]
[1745939316612,0.2102745,95090.0,95089.0,0.3241744]
[1745939317413,0.0525669,95094.0,95091.0,0.0525675]
[1745939317613,0.001,95106.0,95099.0,0.0525634]
[1745939317804,0.3608,95121.0,95112.0,0.2102258]
[1745939318000,0.3608,95121.0,95112.0,0.2761858]
[1745939318207,0.4131,95135.0,95125.0,0.2101971]
[1745939318511,0.01977555,95126.0,95125.0,2.07881994]
[1745939319109,0.22997035,95126.0,95125.0,2.19881994]
[1745939320209,0.01977555,95126.0,95125.0,2.07881994]
[1745939320615,0.2101948,95126.0,95125.0,2.07881994]
[1745939320810,0.2101909,95128.0,95127.0,0.2101904]
[1745939321020,0.2627294,95134.0,95133.0,0.210175]
[1745939321210,0.001,95136.0,95135.0,0.210175]
[1745939321402,0.001,95136.0,95135.0,0.570975]
[1745939323213,0.2111728,95136.0,95135.0,0.570975]
[1745939323717,0.001,95136.0,95135.0,0.570975]
[1745939325014,0.2111728,95136.0,95135.0,0.570975]
[1745939328513,0.001,95136.0,95135.0,0.570975]
[1745939329118,0.001,95136.0,95135.0,0.690975]
[1745939330815,0.2111728,95136.0,95135.0,0.690975]
[1745939331021,0.001,95136.0,95135.0,0.690975]
[1745939331217,0.001,95136.0,95135.0,0.570975]
[1745939332119,0.001,95136.0,95135.0,0.690975]
[1745939332516,0.001,95136.0,95135.0,0.796087]
[1745939332713,0.0015,95150.0,95149.0,0.210144]
[1745939333016,0.0015,95150.0,95149.0,0.636824]
[1745939333324,0.0015,95150.0,95149.0,2.136824]
[1745939333520,0.0015,95150.0,95149.0,2.207024]
[1745939336420,0.0362,95150.0,95149.0,2.207024]
[1745939338813,0.0015,95150.0,95149.0,2.207024]
[1745939339417,0.039,95150.0,95149.0,2.207024]
[1745939340223,0.039,95150.0,95149.0,2.327024]
[1745939340726,0.0015,95150.0,95149.0,2.327024]
[1745939342042,0.0383,95150.0,95149.0,2.327024]
[1745939343240,0.0383,95150.0,95149.0,2.207024]
[1745939343438,0.0383,95150.0,95149.0,2.171624]
[1745939343749,0.2484418,95150.0,95149.0,2.171624]
[1745939343945,0.2484418,95150.0,95149.0,1.8608]
[1745939344150,0.3684418,95150.0,95149.0,0.06588]
[1745939344943,0.3684418,95150.0,95149.0,0.276024]
[1745939345946,0.3684418,95150.0,95149.0,0.06588]
[1745939346453,0.3684418,95150.0,95149.0,0.276024]
[1745939348145,0.2101462,95148.0,95147.0,0.06588]
[1745939348937,0.2101462,95148.0,95147.0,0.2760285]
[1745939349136,0.3301462,95148.0,95147.0,0.2760285]
[1745939350051,0.3301462,95148.0,95147.0,0.06588]
[1745939351742,0.2101485,95147.0,95146.0,0.3608]
[1745939351943,0.3188485,95147.0,95146.0,0.3608]
[1745939352251,0.4388485,95147.0,95146.0,0.3608]
[1745939353949,0.2101728,95136.0,95134.0,0.06588]
[1745939354155,0.3301728,95136.0,95134.0,0.06588]
[1745939354345,0.3301728,95136.0,95134.0,0.2760571]
[1745939354846,0.4369728,95136.0,95134.0,0.2760571]
[1745939356851,0.4369728,95136.0,95134.0,0.06588]
[1745939357442,0.4369728,95136.0,95134.0,0.276057]
[1745939358354,0.4369728,95136.0,95134.0,0.06588]
[1745939358747,0.4369728,95136.0,95134.0,0.10358]
[1745939359147,0.4369728,95136.0,95135.0,0.608675]
[1745939360157,0.4369728,95136.0,95135.0,0.3985]
[1745939360544,0.4369728,95136.0,95135.0,0.608675]
[1745939361151,0.3301728,95136.0,95135.0,0.608675]
[1745939361453,0.3301728,95136.0,95135.0,0.645075]
[1745939362248,0.2101728,95136.0,95135.0,0.645075]
[1745939362448,0.6232618,95143.0,95142.0,0.2101595]
[1745939362655,0.6758011,95143.0,95142.0,0.2101595]
[1745939363048,0.6758011,95143.0,95142.0,1.7101595]
[1745939363250,0.4131,95143.0,95142.0,1.7838595]
[1745939364060,0.0015,95150.0,95149.0,0.210144]
[1745939364360,0.0015,95150.0,95149.0,0.636784]
[1745939364560,0.0015,95150.0,95149.0,0.710484]
[1745939364754,0.0015,95150.0,95149.0,2.210484]
[1745939364954,0.0015,95150.0,95149.0,2.31558]
[1745939365156,0.0015,95150.0,95149.0,2.43558]
[1745939366350,0.0015,95150.0,95149.0,2.68558]
[1745939369458,0.210116,95162.0,95161.0,0.2101131]
[1745939369648,0.210116,95162.0,95161.0,0.5709131]
[1745939370049,0.210116,95162.0,95161.0,2.0709131]
[1745939370260,0.210116,95162.0,95161.0,1.8608]
[1745939370465,0.210116,95162.0,95161.0,1.9645]
[1745939371053,0.244416,95162.0,95161.0,2.1746175]
[1745939371252,0.364416,95162.0,95161.0,2.1746175]
[1745939371652,0.364416,95162.0,95161.0,1.99184661]
[1745939371852,0.364416,95162.0,95161.0,1.95394661]
[1745939372359,0.364416,95162.0,95161.0,0.45394661]
[1745939373854,0.364416,95162.0,95161.0,0.38814661]
[1745939374054,0.364416,95162.0,95161.0,0.59826411]
[1745939374964,0.364416,95162.0,95161.0,0.5709175]
[1745939375154,0.364416,95162.0,95161.0,0.59830285]
[1745939375463,0.364416,95162.0,95161.0,0.5709175]
[1745939376455,0.2101197,95160.0,95159.0,1.5]
[1745939376660,0.2101197,95160.0,95159.0,1.73846946]
[1745939377169,0.3301197,95160.0,95159.0,1.73846946]
[1745939377656,0.3301197,95160.0,95159.0,1.710122]
[1745939377852,0.3301197,95160.0,95159.0,1.5]
[1745939378164,0.3301197,95160.0,95159.0,1.710122]
[1745939378554,0.3301197,95160.0,95159.0,0.210122]
[1745939380260,0.2101242,95158.0,95157.0,0.2101251]
[1745939380856,0.2101286,95156.0,95155.0,0.0658]
[1745939381057,0.2101573,95143.0,95142.0,0.0658]
[1745939381472,0.2101573,95143.0,95142.0,0.2759595]
[1745939381960,0.3164573,95143.0,95142.0,0.2759595]
[1745939382161,0.4364573,95143.0,95142.0,0.2759595]
[1745939383160,0.4364573,95143.0,95142.0,0.2769595]
[1745939383960,0.3301573,95143.0,95142.0,0.2769595]
[1745939385957,0.3652573,95143.0,95142.0,0.2769595]
[1745939387072,0.3652573,95143.0,95142.0,0.0668]
[1745939387666,0.4031573,95143.0,95142.0,0.0668]
[1745939387872,0.4031573,95143.0,95142.0,0.2769595]
[1745939388765,0.4031573,95143.0,95142.0,0.0668]
[1745939389271,0.4031573,95143.0,95142.0,0.2769595]
[1745939389475,0.4031573,95143.0,95142.0,0.2759595]
[1745939389767,0.4031573,95143.0,95142.0,0.2769595]
[1745939389964,0.4031573,95143.0,95142.0,0.0668]
[1745939390561,0.4031573,95143.0,95142.0,0.2769595]
[1745939390763,0.4031573,95143.0,95142.0,0.0668]
[1745939390967,0.4031573,95143.0,95142.0,0.2769595]
[1745939392373,0.4031573,95143.0,95142.0,0.0668]
[1745939392568,0.4031573,95143.0,95142.0,0.2769595]
[1745939392769,0.4031573,95143.0,95142.0,0.0658]
[1745939392975,0.193,95143.0,95142.0,0.2759595]
[1745939393274,0.3652573,95143.0,95142.0,0.2759595]
[1745939393971,0.12,95143.0,95142.0,0.2759595]
[1745939394272,0.2436498,95147.0,95146.0,0.2101507]
[1745939394972,0.2436498,95147.0,95146.0,0.2450507]
[1745939395179,0.3636498,95147.0,95146.0,0.2450507]
[1745939398084,0.3636498,95147.0,95141.0,0.05254]
[1745939398085,0.2101639,95140.0,95134.0,0.2101761]
[1745939398271,0.2101639,95140.0,95139.0,0.45394305]
[1745939398771,0.2101639,95140.0,95139.0,1.95394305]
[1745939398972,0.2464639,95140.0,95139.0,2.20080915]
[1745939399178,0.12,95140.0,95139.0,2.20080915]
[1745939399376,0.12,95140.0,95139.0,2.20280915]
[1745939399778,0.12,95140.0,95139.0,2.20180915]
[1745939399967,0.12,95140.0,95139.0,2.20280915]
[1745939400172,0.2101554,95144.0,95143.0,0.2101573]
[1745939400778,0.2101554,95144.0,95143.0,0.2813573]
[1745939401272,0.3301554,95144.0,95143.0,0.2813573]
[1745939402879,0.3301554,95144.0,95143.0,0.0712]
[1745939403083,0.3301554,95144.0,95143.0,0.2813573]
[1745939404386,0.12,95144.0,95143.0,0.2813573]
[1745939406187,0.05353911,95163.0,95162.0,0.2101153]
[1745939406491,0.05353911,95163.0,95162.0,0.6366753]
[1745939406673,0.05353911,95163.0,95162.0,2.1366753]
[1745939407281,0.05353911,95163.0,95162.0,2.2086753]
[1745939408081,0.20683911,95163.0,95162.0,2.2086753]
[1745939408985,0.19452358,95163.0,95162.0,2.2086753]
[1745939409886,0.1533,95163.0,95162.0,2.2086753]
[1745939414196,0.1533,95163.0,95162.0,2.1723753]
[1745939414582,0.3634131,95163.0,95162.0,2.1723753]
[1745939415495,0.3634131,95163.0,95162.0,1.92656]
[1745939415795,0.2626519,95161.0,95160.0,0.2101193]
[1745939415983,0.210122,95161.0,95160.0,0.2101193]
[1745939416183,0.330122,95161.0,95160.0,0.2101193]
[1745939416695,0.330122,95161.0,95160.0,0.2435193]
[1745939417190,0.2101197,95160.0,95159.0,0.0359]
[1745939417387,0.2812197,95160.0,95159.0,0.246022]
[1745939417988,0.2812197,95160.0,95159.0,0.0359]
[1745939418286,0.210133,95154.0,95151.0,0.2101388]
[1745939418487,0.210133,95154.0,95150.0,0.3608]
[1745939418687,0.210133,95154.0,95150.0,1.8608]
[1745939419089,0.403233,95154.0,95151.0,0.0346]
[1745939419489,0.403233,95154.0,95151.0,0.0871347]
[1745939419688,0.403233,95154.0,95153.0,0.06676]
[1745939419890,0.403233,95154.0,95153.0,0.06776]
[1745939420997,0.403233,95154.0,95153.0,0.2778952]
[1745939421800,0.1931,95154.0,95153.0,0.2778952]
[1745939421999,0.403233,95154.0,95153.0,0.2778952]
[1745939422490,0.403233,95154.0,95153.0,0.2475352]
[1745939422989,0.39091596,95154.0,95153.0,0.2465352]
[1745939423698,0.330133,95154.0,95153.0,0.2465352]
[1745939425001,0.330133,95154.0,95153.0,0.0364]
[1745939425805,0.330133,95154.0,95153.0,0.2465352]
[1745939425994,0.364033,95154.0,95153.0,0.2465352]
[1745939426299,0.364033,95154.0,95153.0,0.0364]
[1745939427400,0.2101396,95151.0,95150.0,0.42648]
[1745939427698,0.2101396,95151.0,95150.0,0.6366218]
[1745939428092,0.3301396,95151.0,95150.0,0.6720218]
[1745939428404,0.3639396,95151.0,95150.0,0.3112218]
[1745939429199,0.3639396,95151.0,95150.0,0.11653945]
[1745939429604,0.3639396,95151.0,95150.0,0.11753945]
[1745939430600,0.3639396,95151.0,95150.0,0.11853945]
[1745939430789,0.3639396,95151.0,95150.0,0.32868125]
[1745939430992,0.3639396,95151.0,95150.0,0.36248125]
[1745939432001,0.3639396,95151.0,95150.0,0.36048125]
[1745939432196,0.3639396,95151.0,95150.0,0.11753945]
[1745939432689,0.3639396,95151.0,95150.0,0.11653945]
[1745939436294,0.3639396,95151.0,95150.0,0.32668125]
[1745939437706,0.3639396,95151.0,95150.0,0.05085945]
[1745939437906,0.7247396,95151.0,95150.0,0.05085945]
[1745939438106,0.3639396,95151.0,95150.0,0.05085945]
[1745939439207,0.3639396,95151.0,95150.0,0.08515945]
[1745939446397,0.3639396,95151.0,95150.0,0.0697]
[1745939446603,0.3639396,95151.0,95150.0,0.08579423]
[1745939447804,0.2101639,95140.0,95133.0,0.16004545]
[1745939447997,0.2101639,95140.0,95139.0,0.05294627]
[1745939448197,0.3301639,95140.0,95139.0,1.55294627]
[1745939448403,0.3301639,95140.0,95139.0,1.57478199]
[1745939448809,0.3668639,95140.0,95139.0,1.57578199]
[1745939449104,0.3668639,95140.0,95139.0,1.57778199]
[1745939450308,0.3668639,95140.0,95139.0,1.57678199]
[1745939450899,0.3668639,95140.0,95139.0,1.57578199]
[1745939451109,0.3668639,95140.0,95139.0,1.61208199]
[1745939451904,0.3668639,95140.0,95139.0,1.61108199]
[1745939452609,0.3668639,95140.0,95139.0,1.58924627]
[1745939453809,0.3668639,95140.0,95139.0,1.6096256]
[1745939455409,0.3668639,95140.0,95139.0,1.59347933]
[1745939457611,0.3668639,95140.0,95139.0,0.0353]
[1745939457806,0.2101705,95137.0,95136.0,0.08775583]
[1745939458003,0.2101705,95137.0,95136.0,0.06572]
[1745939458203,0.3301705,95137.0,95136.0,0.09822]
[1745939458403,0.3301705,95137.0,95136.0,0.13522]
[1745939458715,0.3638705,95137.0,95136.0,0.13522]
[1745939459410,0.3638705,95137.0,95136.0,0.13622]
[1745939460509,0.3638705,95137.0,95136.0,0.13522]
[1745939462003,0.3638705,95137.0,95136.0,0.3453928]
[1745939462202,0.3301705,95137.0,95136.0,0.3453928]
[1745939462510,0.3301705,95137.0,95136.0,0.36106664]
[1745939463207,0.2101705,95137.0,95136.0,0.36106664]
[1745939463910,0.2101705,95137.0,95136.0,0.36406664]
[1745939464415,0.2101705,95137.0,95136.0,0.36606664]
[1745939465911,0.2101705,95137.0,95136.0,0.36506664]
[1745939466102,0.2101705,95137.0,95136.0,0.36383876]
[1745939466412,0.2101705,95137.0,95136.0,0.3483928]
[1745939467510,0.2101705,95137.0,95136.0,0.36394738]
[1745939468210,0.6232639,95140.0,95139.0,0.2101661]
[1745939468402,0.6232639,95140.0,95139.0,0.58652068]
[1745939468808,0.6232639,95140.0,95139.0,2.08652068]
[1745939469317,0.6232639,95140.0,95139.0,2.08752068]
[1745939469518,0.2101639,95140.0,95139.0,2.08752068]
[1745939469811,0.2101639,95140.0,95139.0,2.08652281]
[1745939470019,0.2101567,95144.0,95143.0,0.2101551]
[1745939470213,0.2101567,95144.0,95143.0,0.26111181]
[1745939470407,0.2101567,95144.0,95143.0,0.29511181]
[1745939471111,0.2101567,95144.0,95143.0,0.08495671]
[1745939471511,0.2101567,95144.0,95143.0,0.08695671]
[1745939471712,0.2456523,95146.0,95143.0,0.13978525]
[1745939471908,0.0525273,95165.0,95164.0,0.2101087]
[1745939472107,0.2425179,95165.0,95164.0,0.22595515]
[1745939472311,0.2425179,95165.0,95164.0,0.22595735]
[1745939473020,0.2425179,95165.0,95164.0,0.31424116]
[1745939473215,0.3625179,95165.0,95164.0,0.31424116]
[1745939473514,0.3625179,95165.0,95164.0,0.31412207]
[1745939473716,0.3625179,95165.0,95164.0,0.01572736]
[1745939473917,0.210144,95149.0,95148.0,0.0666]
[1745939474214,0.3826802,95149.0,95148.0,0.01573232]
[1745939474418,0.4877802,95149.0,95148.0,0.01573232]
[1745939475118,0.2101617,95141.0,95140.0,0.066]
[1745939475317,0.2101617,95141.0,95140.0,0.08177884]
[1745939475318,0.6232617,95141.0,95140.0,0.08177884]
[1745939475913,0.7221617,95141.0,95140.0,0.08177884]
[1745939476102,0.8421617,95141.0,95140.0,0.08177884]
[1745939476505,0.8421617,95141.0,95140.0,0.066]
[1745939476708,0.8421617,95141.0,95140.0,0.08171582]
[1745939481511,0.0525433,95136.0,95125.0,0.00782284]
[1745939481714,0.3608,95129.0,95108.0,0.27939394]
[1745939481917,0.3608,95116.0,95108.0,0.21339394]
[1745939482112,0.2102324,95109.0,95108.0,0.21339394]
[1745939482620,0.3153764,95109.0,95108.0,0.21339394]
[1745939483115,0.3153764,95109.0,95105.0,0.00105146]
[1745939483116,0.2102391,95106.0,95105.0,0.2144454]
[1745939483316,0.5710391,95106.0,95105.0,0.2144454]
[1745939483515,0.6761871,95106.0,95105.0,0.2144454]
[1745939483720,0.2102567,95098.0,95097.0,0.00157733]
[1745939483910,0.6233567,95098.0,95097.0,0.00157733]
[1745939484217,1.1041567,95098.0,95097.0,0.00157733]
[1745939484606,1.1687567,95098.0,95097.0,0.00157733]
[1745939485518,1.1687567,95098.0,95097.0,0.00357733]
[1745939485722,1.1687567,95098.0,95097.0,0.00657733]
[1745939488723,0.0525669,95093.0,95086.0,0.0346]
[1745939489020,1.063656,95098.0,95084.0,0.02156779]
[1745939489021,0.2102855,95085.0,95084.0,0.02156779]
[1745939489219,0.2102921,95082.0,95081.0,0.0651]
[1745939489424,0.2102921,95082.0,95081.0,0.2753943]
[1745939489824,0.2102921,95082.0,95081.0,0.28343464]
[1745939490215,0.3302921,95082.0,95081.0,0.28343464]
[1745939490823,0.3302921,95082.0,95081.0,0.30514028]
[1745939491214,0.3302921,95082.0,95081.0,0.31014028]
[1745939491729,0.3302921,95082.0,95081.0,0.10484598]
[1745939492024,0.3302921,95082.0,95081.0,0.31514028]
[1745939496122,0.3302921,95082.0,95081.0,0.10484598]
[1745939496924,0.3302921,95082.0,95081.0,0.31514028]
[1745939497825,0.3302921,95082.0,95081.0,0.10484598]
[1745939498025,0.3302921,95082.0,95081.0,0.31514028]
[1745939498421,0.3302921,95082.0,95081.0,0.10484598]
[1745939499119,0.12,95082.0,95081.0,0.31514028]
[1745939499825,0.4131,95084.0,95081.0,0.41484598]
[1745939500128,0.4131,95084.0,95083.0,0.5710899]
[1745939500518,0.4131,95084.0,95083.0,2.0710899]
[1745939501132,0.4131,95084.0,95083.0,2.1910899]
[1745939501627,0.6233877,95084.0,95083.0,2.1950899]
[1745939501825,0.6233877,95084.0,95083.0,2.2608499]
[1745939502026,0.4131,95084.0,95083.0,2.2608499]
[1745939502337,0.4131,95084.0,95083.0,2.1408499]
[1745939502626,0.6233877,95084.0,95083.0,2.1458499]
[1745939504732,0.2102877,95084.0,95083.0,2.1458499]
[1745939504923,0.2102877,95084.0,95083.0,0.43556]
[1745939505819,0.2102877,95084.0,95083.0,0.3698]
[1745939506126,0.2436877,95084.0,95083.0,0.43556]
[1745939506341,0.2436877,95084.0,95083.0,0.6458499]
[1745939506931,0.2436877,95084.0,95083.0,0.2850499]
[1745939507133,0.2436877,95084.0,95083.0,0.6458499]
[1745939507933,0.2436877,95084.0,95083.0,0.43556]
[1745939508435,0.2436877,95084.0,95083.0,0.07476]
[1745939509129,0.3636877,95084.0,95083.0,0.07476]
[1745939509330,0.3636877,95084.0,95083.0,0.6458499]
[1745939510128,0.3636877,95084.0,95083.0,0.2850499]
[1745939510543,0.3636877,95084.0,95083.0,0.6458499]
[1745939511830,0.3636877,95084.0,95083.0,0.43556]
[1745939512229,0.3636877,95084.0,95083.0,0.07476]
[1745939513032,0.3636877,95084.0,95083.0,0.14176]
[1745939513233,0.3636877,95084.0,95083.0,0.3520499]
[1745939515230,0.2436877,95084.0,95083.0,0.3520499]
[1745939516634,0.12,95087.0,95086.0,0.2102833]
[1745939517539,0.12,95087.0,95086.0,0.2764833]
[1745939517743,0.2102747,95090.0,95089.0,0.2102766]
[1745939519243,0.2102747,95090.0,95089.0,0.2162766]
[1745939524637,0.0525647,95097.0,95089.0,0.006]
[1745939524836,0.2946316,95096.0,95095.0,0.2102612]
[1745939525046,0.4131,95100.0,95099.0,0.2102545]
[1745939525235,0.4131,95100.0,95099.0,0.2760145]
[1745939525542,0.0318,95106.0,95102.0,0.0525617]
[1745939525737,0.2420308,95110.0,95109.0,0.2102324]
[1745939526433,0.2420308,95110.0,95109.0,1.7766324]
[1745939528136,0.2430308,95110.0,95109.0,1.7766324]
[1745939530046,0.2430308,95110.0,95109.0,1.78978877]
[1745939533038,0.2430308,95110.0,95109.0,1.57955637]
[1745939533238,0.2430308,95110.0,95109.0,1.5]
[1745939533440,0.0525592,95108.0,95104.0,0.2102425]
[1745939533648,0.2102391,95106.0,95105.0,0.0327]
[1745939533950,0.2102413,95105.0,95104.0,1.51262651]
[1745939534147,0.2772413,95105.0,95104.0,1.5]
[1745939534347,0.2102479,95102.0,95101.0,0.2102498]
[1745939534547,0.0525633,95100.0,95096.0,0.0342]